[Event "*** Titled Tuesday Blitz"]
[Site "Chess.com"]
[Date "2020.02.04"]
[Round "3"]
[White "Aleksandr_Kozak"]
[Black "evgenyermolaev"]
[Result "0-1"]
[WhiteElo "2260"]
[BlackElo "2527"]
[TimeControl "180+2"]
[EndTime "9:41:09 PST"]
[Termination "evgenyermolaev won by checkmate"]

1. e4 {[%clk 0:03:01.9]} 1... c5 {[%clk 0:03:01.1]} 2. c3 {[%clk 0:03:02.3]}
2... d5 {[%clk 0:03:00.6]} 3. exd5 {[%clk 0:03:02.5]} 3... Qxd5 {[%clk
0:03:02.5]} 4. d4 {[%clk 0:03:04.3]} 4... Bf5 {[%clk 0:03:03.2]} 5. Nf3 {[%clk
0:03:05.8]} 5... e6 {[%clk 0:03:00.9]} 6. Be2 {[%clk 0:02:55.6]} 6... cxd4
{[%clk 0:02:52]} 7. Nxd4 {[%clk 0:02:55.8]} 7... Be4 {[%clk 0:02:05.6]} 8. O-O
{[%clk 0:02:42.3]} 8... Nc6 {[%clk 0:01:55.1]} 9. Nb5 {[%clk 0:02:19.6]} 9...
O-O-O {[%clk 0:01:45.6]} 10. Qxd5 {[%clk 0:01:51.5]} 10... exd5 {[%clk
0:01:10.6]} 11. Be3 {[%clk 0:01:44.6]} 11... a6 {[%clk 0:01:04.2]} 12. Na7+
{[%clk 0:01:34]} 12... Nxa7 {[%clk 0:01:01.6]} 13. Bxa7 {[%clk 0:01:34.4]} 13...
Ne7 {[%clk 0:00:59.4]} 14. Nd2 {[%clk 0:01:34.6]} 14... Nc6 {[%clk 0:00:55.3]}
15. Bb6 {[%clk 0:01:34.6]} 15... Re8 {[%clk 0:00:53.8]} 16. Rfe1 {[%clk
0:01:33.4]} 16... Bd6 {[%clk 0:00:50.7]} 17. Bg4+ {[%clk 0:01:24.3]} 17... Kb8
{[%clk 0:00:49.9]} 18. Nxe4 {[%clk 0:01:25]} 18... dxe4 {[%clk 0:00:51.8]} 19.
Bf5 {[%clk 0:01:21.9]} 19... Re5 {[%clk 0:00:45.3]} 20. Bd7 {[%clk 0:01:06.4]}
20... Rb5 {[%clk 0:00:22.5]} 21. Bd4 {[%clk 0:00:50.3]} 21... Nxd4 {[%clk
0:00:22.7]} 22. cxd4 {[%clk 0:00:50.6]} 22... Rxb2 {[%clk 0:00:23.1]} 23. Rxe4
{[%clk 0:00:50.8]} 23... Rd8 {[%clk 0:00:22]} 24. Ba4 {[%clk 0:00:50.3]} 24...
Bc7 {[%clk 0:00:16.8]} 25. Bb3 {[%clk 0:00:50.3]} 25... Bb6 {[%clk 0:00:15.7]}
26. Rd1 {[%clk 0:00:49.8]} 26... f5 {[%clk 0:00:16.8]} 27. Rf4 {[%clk 0:00:46]}
27... g6 {[%clk 0:00:17.9]} 28. h4 {[%clk 0:00:46.4]} 28... Re8 {[%clk
0:00:15.9]} 29. d5 {[%clk 0:00:37.2]} 29... Ree2 {[%clk 0:00:15]} 30. Rf1 {[%clk
0:00:38.1]} 30... Kc7 {[%clk 0:00:15.1]} 31. g3 {[%clk 0:00:36.5]} 31... Kd6
{[%clk 0:00:15]} 32. h5 {[%clk 0:00:37.3]} 32... Bc5 {[%clk 0:00:15.7]} 33. Kg2
{[%clk 0:00:36.8]} 33... b5 {[%clk 0:00:15.8]} 34. hxg6 {[%clk 0:00:37.7]} 34...
hxg6 {[%clk 0:00:17.7]} 35. g4 {[%clk 0:00:38.8]} 35... Ke5 {[%clk 0:00:17.6]}
36. Kg3 {[%clk 0:00:32.2]} 36... Bd6 {[%clk 0:00:15.8]} 37. gxf5 {[%clk
0:00:31.6]} 37... Kf6 {[%clk 0:00:16.6]} 38. fxg6+ {[%clk 0:00:30.4]} 38...
Bxf4+ {[%clk 0:00:17.6]} 39. Kxf4 {[%clk 0:00:30.5]} 39... Rxf2+ {[%clk
0:00:19.1]} 40. Rxf2 {[%clk 0:00:31.2]} 40... Rxf2+ {[%clk 0:00:21]} 41. Ke4
{[%clk 0:00:32.6]} 41... Rd2 {[%clk 0:00:21.5]} 42. g7 {[%clk 0:00:26.5]} 42...
Kxg7 {[%clk 0:00:21.6]} 43. Ke5 {[%clk 0:00:28]} 43... Kf8 {[%clk 0:00:23.1]}
44. Kd6 {[%clk 0:00:29]} 44... Ke8 {[%clk 0:00:23.9]} 45. Kc6 {[%clk 0:00:19.2]}
45... Rh2 {[%clk 0:00:19.2]} 46. d6 {[%clk 0:00:17.8]} 46... Rh6 {[%clk
0:00:19]} 47. Kc7 {[%clk 0:00:18.6]} 47... Rh7+ {[%clk 0:00:15.1]} 48. Kc6
{[%clk 0:00:19.8]} 48... Kd8 {[%clk 0:00:14.7]} 49. Bd5 {[%clk 0:00:18.2]} 49...
Rh3 {[%clk 0:00:09.9]} 50. Be6 {[%clk 0:00:15.2]} 50... Re3 {[%clk 0:00:07.6]}
51. Bg8 {[%clk 0:00:15.8]} 51... Ra3 {[%clk 0:00:08.5]} 52. Be6 {[%clk 0:00:13]}
52... b4 {[%clk 0:00:09.8]} 53. Kc5 {[%clk 0:00:14]} 53... a5 {[%clk 0:00:11.1]}
54. Kb5 {[%clk 0:00:15.1]} 54... Re3 {[%clk 0:00:10.1]} 55. Bb3 {[%clk
0:00:15.8]} 55... Re5+ {[%clk 0:00:11.3]} 56. Kc6 {[%clk 0:00:16.4]} 56... Rh5
{[%clk 0:00:11.3]} 57. Bf7 {[%clk 0:00:17]} 57... Rg5 {[%clk 0:00:11.8]} 58. Bb3
{[%clk 0:00:16.3]} 58... Rf5 {[%clk 0:00:12.6]} 59. Ba4 {[%clk 0:00:17.1]} 59...
Rf2 {[%clk 0:00:12.6]} 60. Bb3 {[%clk 0:00:17.4]} 60... a4 {[%clk 0:00:13.8]}
61. Bxa4 {[%clk 0:00:17.1]} 61... Rxa2 {[%clk 0:00:15.1]} 62. Kb5 {[%clk
0:00:19]} 62... Rb2 {[%clk 0:00:13.2]} 63. Kc4 {[%clk 0:00:18.7]} 63... Rd2
{[%clk 0:00:10.7]} 64. Kxb4 {[%clk 0:00:18.9]} 64... Rd4+ {[%clk 0:00:11.8]} 65.
Kc5 {[%clk 0:00:20.3]} 65... Rxa4 {[%clk 0:00:12.5]} 66. Kc6 {[%clk 0:00:18.4]}
66... Rh4 {[%clk 0:00:12.2]} 67. Kd5 {[%clk 0:00:18.9]} 67... Kd7 {[%clk
0:00:12.6]} 68. Ke5 {[%clk 0:00:20.8]} 68... Rh5+ {[%clk 0:00:13.5]} 69. Ke4
{[%clk 0:00:21.4]} 69... Kxd6 {[%clk 0:00:14.8]} 70. Kd4 {[%clk 0:00:23.3]}
70... Rh4+ {[%clk 0:00:15.9]} 71. Kd3 {[%clk 0:00:25.2]} 71... Ke5 {[%clk
0:00:17]} 72. Kc3 {[%clk 0:00:27.1]} 72... Kd5 {[%clk 0:00:16.7]} 73. Kd3 {[%clk
0:00:29]} 73... Rh3+ {[%clk 0:00:17.3]} 74. Kd2 {[%clk 0:00:28.6]} 74... Kd4
{[%clk 0:00:18.1]} 75. Kc2 {[%clk 0:00:30]} 75... Rg3 {[%clk 0:00:19]} 76. Kb2
{[%clk 0:00:30.4]} 76... Kc4 {[%clk 0:00:20.2]} 77. Kc2 {[%clk 0:00:31.4]} 77...
Rg2+ {[%clk 0:00:20.1]} 78. Kd1 {[%clk 0:00:33.1]} 78... Kd3 {[%clk 0:00:20.5]}
79. Ke1 {[%clk 0:00:35]} 79... Ra2 {[%clk 0:00:20.3]} 80. Kf1 {[%clk 0:00:36.9]}
80... Ke3 {[%clk 0:00:21]} 81. Kg1 {[%clk 0:00:38.8]} 81... Kf3 {[%clk
0:00:21.5]} 82. Kf1 {[%clk 0:00:40.7]} 82... Ra1# {[%clk 0:00:22.4]} 0-1

[Event "*** Titled Tuesday Blitz"]
[Site "Chess.com"]
[Date "2020.02.04"]
[Round "3"]
[White "SHIVACalypso"]
[Black "riconaipe"]
[Result "0-1"]
[WhiteElo "2214"]
[BlackElo "2534"]
[TimeControl "180+2"]
[EndTime "9:41:19 PST"]
[Termination "riconaipe won by resignation"]

1. Nf3 {[%clk 0:03:01.9]} 1... g6 {[%clk 0:02:58.5]} 2. c4 {[%clk 0:03:02.4]}
2... Bg7 {[%clk 0:02:59.9]} 3. g3 {[%clk 0:03:04]} 3... e5 {[%clk 0:03:01.1]} 4.
Nc3 {[%clk 0:03:03.7]} 4... Nc6 {[%clk 0:03:00.7]} 5. Bg2 {[%clk 0:03:02.5]}
5... Nge7 {[%clk 0:03:00.4]} 6. O-O {[%clk 0:03:03.6]} 6... O-O {[%clk
0:03:01.4]} 7. d3 {[%clk 0:03:05.2]} 7... d6 {[%clk 0:02:59.5]} 8. Rb1 {[%clk
0:03:05.8]} 8... Be6 {[%clk 0:02:54.9]} 9. b4 {[%clk 0:03:01.4]} 9... Qd7 {[%clk
0:02:54.7]} 10. b5 {[%clk 0:03:01.8]} 10... Nd4 {[%clk 0:02:55.8]} 11. Nxd4
{[%clk 0:03:02.7]} 11... exd4 {[%clk 0:02:57]} 12. Nd5 {[%clk 0:03:04.2]} 12...
Nxd5 {[%clk 0:02:49.4]} 13. cxd5 {[%clk 0:03:06.1]} 13... Bh3 {[%clk 0:02:50.5]}
14. Bxh3 {[%clk 0:02:53.9]} 14... Qxh3 {[%clk 0:02:51.4]} 15. Qc2 {[%clk
0:02:55.4]} 15... Rac8 {[%clk 0:02:49.7]} 16. Bb2 {[%clk 0:02:55.6]} 16... Rfe8
{[%clk 0:02:50.7]} 17. Rfe1 {[%clk 0:02:45.9]} 17... Re5 {[%clk 0:02:50.6]} 18.
e4 {[%clk 0:02:37.7]} 18... Rh5 {[%clk 0:02:37.7]} 19. f4 {[%clk 0:02:35.9]}
19... g5 {[%clk 0:02:39.1]} 20. Qg2 {[%clk 0:02:23.3]} 20... Qg4 {[%clk
0:02:34.5]} 21. Rf1 {[%clk 0:02:12.2]} 21... c5 {[%clk 0:02:24.2]} 22. bxc6
{[%clk 0:02:10.6]} 22... bxc6 {[%clk 0:02:25.5]} 23. dxc6 {[%clk 0:02:06.1]}
23... Rxc6 {[%clk 0:02:26.1]} 24. Rf2 {[%clk 0:01:56.2]} 24... gxf4 {[%clk
0:02:22.4]} 25. gxf4 {[%clk 0:01:53.8]} 25... Qxg2+ {[%clk 0:02:20]} 26. Rxg2
{[%clk 0:01:55.7]} 26... Kf8 {[%clk 0:02:17.8]} 27. Ba3 {[%clk 0:01:54.9]} 27...
Bh6 {[%clk 0:02:16.4]} 28. Rf2 {[%clk 0:01:15.6]} 28... Ra5 {[%clk 0:02:08.4]}
29. Bb4 {[%clk 0:01:14.8]} 29... Rh5 {[%clk 0:01:53.2]} 30. e5 {[%clk
0:01:15.4]} 30... Ke8 {[%clk 0:01:52.3]} 31. Bxd6 {[%clk 0:01:15.1]} 31... Rf5
{[%clk 0:01:47.7]} 32. Rb8+ {[%clk 0:01:13.7]} 32... Kd7 {[%clk 0:01:48.7]} 33.
Rb7+ {[%clk 0:01:14.7]} 33... Ke6 {[%clk 0:01:49.8]} 34. Rxa7 {[%clk 0:01:10.4]}
34... Bxf4 {[%clk 0:01:49.9]} 35. Kg2 {[%clk 0:01:05.6]} 35... Bxe5 {[%clk
0:01:45.5]} 36. Rxf5 {[%clk 0:01:02.8]} 36... Kxf5 {[%clk 0:01:45.9]} 37. Bxe5
{[%clk 0:01:03.1]} 37... Kxe5 {[%clk 0:01:46.2]} 38. Rxf7 {[%clk 0:01:03.9]}
38... Rc2+ {[%clk 0:01:47.4]} 39. Rf2 {[%clk 0:01:04.2]} 39... Rc3 {[%clk
0:01:47.3]} 40. Rd2 {[%clk 0:01:03.4]} 40... Kf4 {[%clk 0:01:48.6]} 41. Kf2
{[%clk 0:01:04.7]} 41... h5 {[%clk 0:01:48.6]} 42. Ke2 {[%clk 0:00:55.1]} 42...
h4 {[%clk 0:01:49.8]} 43. Rd1 {[%clk 0:00:55.6]} 43... Rc2+ {[%clk 0:01:47.1]}
44. Rd2 {[%clk 0:00:57]} 44... Rc1 {[%clk 0:01:48.1]} 45. Rd1 {[%clk 0:00:55.4]}
45... Rc2+ {[%clk 0:01:47.2]} 46. Rd2 {[%clk 0:00:56.5]} 46... Rc7 {[%clk
0:01:46.8]} 47. Rd1 {[%clk 0:00:55]} 47... Re7+ {[%clk 0:01:47.1]} 48. Kd2
{[%clk 0:00:55.4]} 48... Kf3 {[%clk 0:01:46.6]} 49. Rf1+ {[%clk 0:00:51]} 49...
Kg2 {[%clk 0:01:47.4]} 50. Re1 {[%clk 0:00:51]} 50... Ra7 {[%clk 0:01:28.3]} 51.
Re2+ {[%clk 0:00:50.6]} 51... Kf3 {[%clk 0:01:29.3]} 52. Kd1 {[%clk 0:00:47.1]}
52... Ra3 {[%clk 0:01:29.6]} 53. Rd2 {[%clk 0:00:47.6]} 53... Ke3 {[%clk
0:01:26.7]} 54. Kc1 {[%clk 0:00:41.7]} 54... Rc3+ {[%clk 0:01:18.6]} 55. Kd1
{[%clk 0:00:42.7]} 55... Rc8 {[%clk 0:01:17]} 56. a4 {[%clk 0:00:25.3]} 56...
Ra8 {[%clk 0:01:17.2]} 57. Ra2 {[%clk 0:00:26.2]} 57... Kxd3 {[%clk 0:01:16.8]}
58. Ra3+ {[%clk 0:00:27.7]} 58... Ke4 {[%clk 0:01:16.6]} 59. Kd2 {[%clk
0:00:27.9]} 59... Ra5 {[%clk 0:01:16.8]} 60. Rh3 {[%clk 0:00:26.3]} 60... Rxa4
{[%clk 0:01:17.6]} 61. Rxh4+ {[%clk 0:00:27.6]} 61... Kd5 {[%clk 0:01:19]} 62.
Kd3 {[%clk 0:00:27.2]} 62... Ra3+ {[%clk 0:01:19.5]} 63. Kc2 {[%clk 0:00:28]}
63... Kc4 {[%clk 0:01:20.6]} 64. Rh8 {[%clk 0:00:28.9]} 64... Ra2+ {[%clk
0:01:21.6]} 65. Kc1 {[%clk 0:00:27.7]} 65... Rg2 {[%clk 0:01:16.9]} 66. h4
{[%clk 0:00:27.2]} 66... Kc3 {[%clk 0:01:16.4]} 67. Rc8+ {[%clk 0:00:27.6]}
67... Kd3 {[%clk 0:01:17.6]} 68. h5 {[%clk 0:00:28]} 68... Rh2 {[%clk
0:01:18.6]} 69. Rh8 {[%clk 0:00:28.3]} 69... Rh1+ {[%clk 0:01:01]} 70. Kb2
{[%clk 0:00:28.6]} 70... Kd2 {[%clk 0:00:57.2]} 71. h6 {[%clk 0:00:29.3]} 71...
d3 {[%clk 0:00:58.5]} 72. Rh7 {[%clk 0:00:19.2]} 72... Rh5 {[%clk 0:00:58.2]}
73. Rh8 {[%clk 0:00:19.7]} 73... Rb5+ {[%clk 0:00:58.4]} 74. Ka2 {[%clk
0:00:20.5]} 74... Kd1 {[%clk 0:00:45.4]} 75. Ka3 {[%clk 0:00:18]} 75... d2
{[%clk 0:00:44.7]} 76. Ka2 {[%clk 0:00:18.8]} 76... Re5 {[%clk 0:00:22.9]} 77.
h7 {[%clk 0:00:17.8]} 77... Re7 {[%clk 0:00:21.6]} 78. Kb2 {[%clk 0:00:06]}
78... Ke2 {[%clk 0:00:20.4]} 79. Rd8 {[%clk 0:00:07.3]} 79... Rxh7 {[%clk
0:00:20.8]} 80. Re8+ {[%clk 0:00:08.6]} 80... Kd1 {[%clk 0:00:21.1]} 81. Kc3
{[%clk 0:00:09.4]} 81... Rc7+ {[%clk 0:00:22.2]} 82. Kb2 {[%clk 0:00:09]} 82...
Rb7+ {[%clk 0:00:23.1]} 83. Kc3 {[%clk 0:00:10]} 83... Kc1 {[%clk 0:00:23.1]}
84. Ra8 {[%clk 0:00:06.2]} 84... d1=Q {[%clk 0:00:23.1]} 85. Ra1+ {[%clk
0:00:05.9]} 85... Rb1 {[%clk 0:00:24.5]} 0-1

[Event "*** Titled Tuesday Blitz"]
[Site "Chess.com"]
[Date "2020.02.04"]
[Round "4"]
[White "saraswathii"]
[Black "2nd_life"]
[Result "0-1"]
[WhiteElo "2165"]
[BlackElo "2434"]
[TimeControl "180+2"]
[EndTime "9:46:47 PST"]
[Termination "2nd_life won by resignation"]

1. e4 {[%clk 0:03:01.9]} 1... e5 {[%clk 0:02:59.4]} 2. d3 {[%clk 0:03:02]} 2...
Nc6 {[%clk 0:03:00.1]} 3. Nf3 {[%clk 0:03:02.5]} 3... Bc5 {[%clk 0:03:00.4]} 4.
g3 {[%clk 0:03:03.4]} 4... Nf6 {[%clk 0:02:50.8]} 5. Bg2 {[%clk 0:03:03.9]} 5...
d6 {[%clk 0:02:48.6]} 6. O-O {[%clk 0:03:04]} 6... h5 {[%clk 0:02:46.4]} 7. h4
{[%clk 0:03:00.2]} 7... Ng4 {[%clk 0:02:31.4]} 8. c3 {[%clk 0:02:58.4]} 8... Bb6
{[%clk 0:02:32.2]} 9. d4 {[%clk 0:02:51.9]} 9... Qf6 {[%clk 0:02:23.3]} 10. Bg5
{[%clk 0:02:45]} 10... Qg6 {[%clk 0:02:24.1]} 11. d5 {[%clk 0:02:40.2]} 11...
Ne7 {[%clk 0:02:20.5]} 12. Qd3 {[%clk 0:02:40.3]} 12... f6 {[%clk 0:02:19.2]}
13. Bc1 {[%clk 0:02:39.3]} 13... f5 {[%clk 0:02:19.2]} 14. exf5 {[%clk
0:02:37.2]} 14... Bxf5 {[%clk 0:02:19]} 15. Qb5+ {[%clk 0:02:35.7]} 15... Kd8
{[%clk 0:02:08.2]} 16. Ng5 {[%clk 0:02:15.6]} 16... Bd3 {[%clk 0:01:55.4]} 17.
Qb3 {[%clk 0:02:11]} 17... Bxf1 {[%clk 0:01:53.1]} 18. Kxf1 {[%clk 0:02:09.8]}
18... Qd3+ {[%clk 0:01:50.9]} 19. Kg1 {[%clk 0:02:09.2]} 19... Bxf2+ {[%clk
0:01:47.2]} 0-1

[Event "*** Titled Tuesday Blitz"]
[Site "Chess.com"]
[Date "2020.02.04"]
[Round "4"]
[White "Philosopherrr"]
[Black "SHIVACalypso"]
[Result "1-0"]
[WhiteElo "2442"]
[BlackElo "2211"]
[TimeControl "180+2"]
[EndTime "9:47:27 PST"]
[Termination "Philosopherrr won by checkmate"]

1. e4 {[%clk 0:03:01.9]} 1... e6 {[%clk 0:03:01]} 2. d4 {[%clk 0:02:58.7]} 2...
d5 {[%clk 0:03:02.3]} 3. Nc3 {[%clk 0:02:56]} 3... Nf6 {[%clk 0:03:02.4]} 4. Bg5
{[%clk 0:02:55.1]} 4... dxe4 {[%clk 0:03:02.7]} 5. Nxe4 {[%clk 0:02:49.1]} 5...
Be7 {[%clk 0:03:03.1]} 6. Bxf6 {[%clk 0:02:48.2]} 6... gxf6 {[%clk 0:03:04]} 7.
Nf3 {[%clk 0:02:49.8]} 7... f5 {[%clk 0:03:05.4]} 8. Nc3 {[%clk 0:02:48.7]} 8...
a6 {[%clk 0:03:06.6]} 9. Qd2 {[%clk 0:02:49.5]} 9... b5 {[%clk 0:03:06.9]} 10.
O-O-O {[%clk 0:02:47.8]} 10... b4 {[%clk 0:02:51.3]} 11. Ne2 {[%clk 0:02:46.5]}
11... Bb7 {[%clk 0:02:46.6]} 12. Kb1 {[%clk 0:02:38]} 12... Nd7 {[%clk
0:02:40.2]} 13. Nf4 {[%clk 0:02:37.9]} 13... Nb6 {[%clk 0:02:40.3]} 14. Ne5
{[%clk 0:02:37.3]} 14... Nd5 {[%clk 0:02:36.2]} 15. Nfd3 {[%clk 0:02:33.4]}
15... a5 {[%clk 0:02:31.3]} 16. Nc5 {[%clk 0:02:33.4]} 16... Bxc5 {[%clk
0:02:15.8]} 17. dxc5 {[%clk 0:02:26]} 17... f6 {[%clk 0:02:01.5]} 18. Bb5+
{[%clk 0:02:12.9]} 18... Kf8 {[%clk 0:01:30.5]} 19. Qh6+ {[%clk 0:02:11]} 19...
Kg8 {[%clk 0:01:28.9]} 20. Rd3 {[%clk 0:02:09.5]} 20... fxe5 {[%clk 0:01:14.1]}
21. Rg3+ {[%clk 0:02:06.4]} 21... Kf7 {[%clk 0:01:12.7]} 22. Qg7# {[%clk
0:02:07.6]} 1-0

[Event "*** Titled Tuesday Blitz"]
[Site "Chess.com"]
[Date "2020.02.04"]
[Round "4"]
[White "Korchmar_Vasiliy"]
[Black "DanielNaroditsky"]
[Result "0-1"]
[WhiteElo "2828"]
[BlackElo "3136"]
[TimeControl "180+2"]
[EndTime "9:48:30 PST"]
[Termination "DanielNaroditsky won by resignation"]

1. d4 {[%clk 0:03:01.5]} 1... Nf6 {[%clk 0:02:59.9]} 2. Nf3 {[%clk 0:03:02.7]}
2... g6 {[%clk 0:03:01]} 3. Bg5 {[%clk 0:03:03.6]} 3... Bg7 {[%clk 0:03:00.4]}
4. Nbd2 {[%clk 0:03:04.9]} 4... O-O {[%clk 0:03:00.7]} 5. e3 {[%clk 0:03:06.2]}
5... d6 {[%clk 0:02:59]} 6. Bd3 {[%clk 0:03:07.2]} 6... c5 {[%clk 0:02:56.4]} 7.
c3 {[%clk 0:03:07.8]} 7... b6 {[%clk 0:02:55.3]} 8. O-O {[%clk 0:03:08.4]} 8...
Bb7 {[%clk 0:02:56.6]} 9. Re1 {[%clk 0:03:09.7]} 9... Nbd7 {[%clk 0:02:54.7]}
10. a4 {[%clk 0:03:10.8]} 10... a6 {[%clk 0:02:55.7]} 11. e4 {[%clk 0:03:12.1]}
11... e5 {[%clk 0:02:54]} 12. Nc4 {[%clk 0:02:35.9]} 12... Qc7 {[%clk
0:02:54.3]} 13. Qb3 {[%clk 0:02:31]} 13... d5 {[%clk 0:02:13.9]} 14. exd5 {[%clk
0:02:01.3]} 14... e4 {[%clk 0:02:14.7]} 15. d6 {[%clk 0:01:39.7]} 15... Qb8
{[%clk 0:02:15.1]} 16. Nfe5 {[%clk 0:01:21.8]} 16... exd3 {[%clk 0:02:10.3]} 17.
Nxd7 {[%clk 0:01:18]} 17... Nxd7 {[%clk 0:02:12.2]} 18. Re7 {[%clk 0:00:55.6]}
18... Bd5 {[%clk 0:02:04.2]} 19. Rxd7 {[%clk 0:00:22.2]} 19... b5 {[%clk
0:02:05]} 20. Qd1 {[%clk 0:00:14.4]} 20... bxc4 {[%clk 0:02:03.4]} 21. dxc5
{[%clk 0:00:15.4]} 21... Qxb2 {[%clk 0:02:03.9]} 0-1

[Event "*** Titled Tuesday Blitz"]
[Site "Chess.com"]
[Date "2020.02.04"]
[Round "4"]
[White "Majkelopulos"]
[Black "secretsuperstar7"]
[Result "1-0"]
[WhiteElo "2469"]
[BlackElo "2252"]
[TimeControl "180+2"]
[EndTime "9:49:07 PST"]
[Termination "Majkelopulos won by resignation"]

1. e4 {[%clk 0:03:01.2]} 1... c5 {[%clk 0:02:59.8]} 2. Nf3 {[%clk 0:03:01.3]}
2... d6 {[%clk 0:02:59.4]} 3. Bb5+ {[%clk 0:03:02.2]} 3... Bd7 {[%clk
0:02:59.6]} 4. c4 {[%clk 0:03:03.2]} 4... Nf6 {[%clk 0:02:58]} 5. Nc3 {[%clk
0:03:04.1]} 5... g6 {[%clk 0:02:56.4]} 6. O-O {[%clk 0:03:01.8]} 6... Bg7 {[%clk
0:02:56.6]} 7. d4 {[%clk 0:03:03]} 7... cxd4 {[%clk 0:02:56.9]} 8. Nxd4 {[%clk
0:03:04.9]} 8... O-O {[%clk 0:02:56.8]} 9. Be3 {[%clk 0:03:05.6]} 9... Nc6
{[%clk 0:02:56.6]} 10. f3 {[%clk 0:03:03.5]} 10... a6 {[%clk 0:02:54.1]} 11.
Bxc6 {[%clk 0:03:02.8]} 11... bxc6 {[%clk 0:02:54.9]} 12. Qe2 {[%clk 0:02:48.4]}
12... e5 {[%clk 0:02:52.9]} 13. Nc2 {[%clk 0:02:47.6]} 13... Qc7 {[%clk
0:02:53.5]} 14. Rfd1 {[%clk 0:02:48.6]} 14... Be6 {[%clk 0:02:54.2]} 15. b3
{[%clk 0:02:47.9]} 15... Nd7 {[%clk 0:02:50.4]} 16. Qd2 {[%clk 0:02:46.2]} 16...
Qa5 {[%clk 0:02:04.9]} 17. Na4 {[%clk 0:02:45.8]} 17... Qxd2 {[%clk 0:01:58.6]}
18. Rxd2 {[%clk 0:02:47.7]} 18... d5 {[%clk 0:01:57.4]} 19. cxd5 {[%clk
0:02:47.7]} 19... cxd5 {[%clk 0:01:58.2]} 20. exd5 {[%clk 0:02:49.6]} 20... Bf5
{[%clk 0:01:59]} 21. Rad1 {[%clk 0:02:45.4]} 21... h5 {[%clk 0:01:50.4]} 22. Nb4
{[%clk 0:02:46.1]} 22... e4 {[%clk 0:01:38]} 23. f4 {[%clk 0:02:46.4]} 23... Bg4
{[%clk 0:01:37.7]} 24. Rc1 {[%clk 0:02:46.9]} 24... g5 {[%clk 0:01:17.9]} 25.
fxg5 {[%clk 0:02:40.7]} 25... Ne5 {[%clk 0:01:16.8]} 26. Nc6 {[%clk 0:02:39.1]}
26... Nd3 {[%clk 0:01:11.2]} 27. Rc4 {[%clk 0:02:38.6]} 27... f5 {[%clk
0:00:57.4]} 28. gxf6 {[%clk 0:02:38.1]} 28... Rxf6 {[%clk 0:00:56.1]} 29. Rxe4
{[%clk 0:02:38]} 29... Bf5 {[%clk 0:00:52.2]} 30. Ne7+ {[%clk 0:02:33.3]} 30...
Kh7 {[%clk 0:00:46.7]} 31. Nxf5 {[%clk 0:02:35.2]} 31... Rxf5 {[%clk 0:00:47.2]}
32. Rxd3 {[%clk 0:02:36.4]} 32... Raf8 {[%clk 0:00:45.7]} 33. Rd1 {[%clk
0:02:35.8]} 33... Rc8 {[%clk 0:00:36.3]} 34. d6 {[%clk 0:02:34.2]} 34... Rc2
{[%clk 0:00:36.6]} 35. d7 {[%clk 0:02:35.6]} 35... Bf6 {[%clk 0:00:37.6]} 36.
Rf4 {[%clk 0:02:30.3]} 36... Rxf4 {[%clk 0:00:28.5]} 37. Bxf4 {[%clk 0:02:32.2]}
37... Bd8 {[%clk 0:00:25.8]} 38. Be3 {[%clk 0:02:32.3]} 38... Rc1 {[%clk
0:00:21.2]} 39. Rxc1 {[%clk 0:02:31.9]} 1-0

[Event "*** Titled Tuesday Blitz"]
[Site "Chess.com"]
[Date "2020.02.04"]
[Round "4"]
[White "PIwan"]
[Black "Nalatac"]
[Result "1-0"]
[WhiteElo "2508"]
[BlackElo "2292"]
[TimeControl "180+2"]
[EndTime "9:49:08 PST"]
[Termination "PIwan won on time"]

1. c4 {[%clk 0:03:01.9]} 1... c5 {[%clk 0:02:59.5]} 2. Nf3 {[%clk 0:03:02.3]}
2... Nf6 {[%clk 0:03:00.5]} 3. Nc3 {[%clk 0:03:02.7]} 3... Nc6 {[%clk
0:03:01.5]} 4. e3 {[%clk 0:03:03.9]} 4... e6 {[%clk 0:02:53]} 5. d4 {[%clk
0:03:05.8]} 5... d5 {[%clk 0:02:53.2]} 6. cxd5 {[%clk 0:03:05.8]} 6... Nxd5
{[%clk 0:02:25.5]} 7. Bd3 {[%clk 0:03:05]} 7... Be7 {[%clk 0:02:23.4]} 8. O-O
{[%clk 0:03:05.1]} 8... O-O {[%clk 0:02:17.5]} 9. Re1 {[%clk 0:03:05.6]} 9... b6
{[%clk 0:01:53.6]} 10. Nxd5 {[%clk 0:02:51.4]} 10... exd5 {[%clk 0:01:54]} 11.
dxc5 {[%clk 0:02:49.1]} 11... bxc5 {[%clk 0:01:52.7]} 12. e4 {[%clk 0:02:37.9]}
12... c4 {[%clk 0:01:39.3]} 13. Bc2 {[%clk 0:02:15.7]} 13... d4 {[%clk
0:01:38.9]} 14. Ba4 {[%clk 0:02:17.1]} 14... Bb7 {[%clk 0:01:08.7]} 15. Bxc6
{[%clk 0:02:17.5]} 15... Bxc6 {[%clk 0:01:10.4]} 16. Nxd4 {[%clk 0:02:19.2]}
16... Bb7 {[%clk 0:01:02.4]} 17. Nf5 {[%clk 0:02:18.8]} 17... Bb4 {[%clk
0:00:58]} 18. Qg4 {[%clk 0:02:11.4]} 18... g6 {[%clk 0:00:40]} 19. Rd1 {[%clk
0:02:05.5]} 19... Qf6 {[%clk 0:00:15.8]} 20. Be3 {[%clk 0:01:56]} 20... Rfe8
{[%clk 0:00:06.6]} 21. Bd4 {[%clk 0:01:50.2]} 21... Rxe4 {[%clk 0:00:03.5]} 22.
Bxf6 {[%clk 0:01:45.7]} 1-0